{"text_format":"3","workbook":"xlsx","n_sheets":1,"sheets":["قائمة المخزون"],"not_rendered":{"images":1,"defined_names":3},"read":"whole","date_system":"1900"}

{"sheet":"قائمة المخزون","index":0,"n_rows":28,"n_cols":13,"rows_kept":28}
[{"$nulls":12}," "]
[{"$nulls":10},"هل تريد تمييز عناصر لإعادة طلبها؟","نعم"]
[null,"لإعادة الطلب","مُعرّف المخزون","الاسم","الوصف","سعر الوحدة","كمية المخزون","قيمة المخزون","معدّل إعادة الطلب","توقيت إعادة الطلب بالأيام","كمية إعادة الطلب","هل تم إيقاف هذا العنصر؟"]
[null,{"$f":"IFERROR((Inventory_List_Table[[#This Row],[كمية المخزون]]<=Inventory_List_Table[[#This Row],[معدّل إعادة الطلب]])*(Inventory_List_Table[[#This Row],[هل تم إيقاف هذا العنصر؟]]=\"\")*valHighlight,0)","v":1},"IN0001","عنصر 1","وصف 1",{"v":51,"d":"ر.س.‏ 51.00"},25,{"$f":"Inventory_List_Table[[#This Row],[سعر الوحدة]]*Inventory_List_Table[[#This Row],[كمية المخزون]]","v":{"v":1275,"d":"ر.س.‏ 1,275.00"}},29,13,50]
[null,{"$f":"IFERROR((Inventory_List_Table[[#This Row],[كمية المخزون]]<=Inventory_List_Table[[#This Row],[معدّل إعادة الطلب]])*(Inventory_List_Table[[#This Row],[هل تم إيقاف هذا العنصر؟]]=\"\")*valHighlight,0)","v":1},"IN0002","عنصر 2","وصف 2",{"v":93,"d":"ر.س.‏ 93.00"},132,{"$f":"Inventory_List_Table[[#This Row],[سعر الوحدة]]*Inventory_List_Table[[#This Row],[كمية المخزون]]","v":{"v":12276,"d":"ر.س.‏ 12,276.00"}},231,4,50]
[null,{"$f":"IFERROR((Inventory_List_Table[[#This Row],[كمية المخزون]]<=Inventory_List_Table[[#This Row],[معدّل إعادة الطلب]])*(Inventory_List_Table[[#This Row],[هل تم إيقاف هذا العنصر؟]]=\"\")*valHighlight,0)","v":0},"IN0003","عنصر 3","وصف 3",{"v":57,"d":"ر.س.‏ 57.00"},151,{"$f":"Inventory_List_Table[[#This Row],[سعر الوحدة]]*Inventory_List_Table[[#This Row],[كمية المخزون]]","v":{"v":8607,"d":"ر.س.‏ 8,607.00"}},114,11,150]
[null,{"$f":"IFERROR((Inventory_List_Table[[#This Row],[كمية المخزون]]<=Inventory_List_Table[[#This Row],[معدّل إعادة الطلب]])*(Inventory_List_Table[[#This Row],[هل تم إيقاف هذا العنصر؟]]=\"\")*valHighlight,0)","v":0},"IN0004","عنصر 4","وصف 4",{"v":19,"d":"ر.س.‏ 19.00"},186,{"$f":"Inventory_List_Table[[#This Row],[سعر الوحدة]]*Inventory_List_Table[[#This Row],[كمية المخزون]]","v":{"v":3534,"d":"ر.س.‏ 3,534.00"}},158,6,50]
[null,{"$f":"IFERROR((Inventory_List_Table[[#This Row],[كمية المخزون]]<=Inventory_List_Table[[#This Row],[معدّل إعادة الطلب]])*(Inventory_List_Table[[#This Row],[هل تم إيقاف هذا العنصر؟]]=\"\")*valHighlight,0)","v":0},"IN0005","عنصر 5","وصف 5",{"v":75,"d":"ر.س.‏ 75.00"},62,{"$f":"Inventory_List_Table[[#This Row],[سعر الوحدة]]*Inventory_List_Table[[#This Row],[كمية المخزون]]","v":{"v":4650,"d":"ر.س.‏ 4,650.00"}},39,12,50]
[null,{"$f":"IFERROR((Inventory_List_Table[[#This Row],[كمية المخزون]]<=Inventory_List_Table[[#This Row],[معدّل إعادة الطلب]])*(Inventory_List_Table[[#This Row],[هل تم إيقاف هذا العنصر؟]]=\"\")*valHighlight,0)","v":1},"IN0006","عنصر 6","وصف 6",{"v":11,"d":"ر.س.‏ 11.00"},5,{"$f":"Inventory_List_Table[[#This Row],[سعر الوحدة]]*Inventory_List_Table[[#This Row],[كمية المخزون]]","v":{"v":55,"d":"ر.س.‏ 55.00"}},9,13,150]
[null,{"$f":"IFERROR((Inventory_List_Table[[#This Row],[كمية المخزون]]<=Inventory_List_Table[[#This Row],[معدّل إعادة الطلب]])*(Inventory_List_Table[[#This Row],[هل تم إيقاف هذا العنصر؟]]=\"\")*valHighlight,0)","v":0},"IN0007","عنصر 7","وصف 7",{"v":56,"d":"ر.س.‏ 56.00"},58,{"$f":"Inventory_List_Table[[#This Row],[سعر الوحدة]]*Inventory_List_Table[[#This Row],[كمية المخزون]]","v":{"v":3248,"d":"ر.س.‏ 3,248.00"}},109,7,100,"نعم"]
[null,{"$f":"IFERROR((Inventory_List_Table[[#This Row],[كمية المخزون]]<=Inventory_List_Table[[#This Row],[معدّل إعادة الطلب]])*(Inventory_List_Table[[#This Row],[هل تم إيقاف هذا العنصر؟]]=\"\")*valHighlight,0)","v":1},"IN0008","عنصر 8","وصف 8",{"v":38,"d":"ر.س.‏ 38.00"},101,{"$f":"Inventory_List_Table[[#This Row],[سعر الوحدة]]*Inventory_List_Table[[#This Row],[كمية المخزون]]","v":{"v":3838,"d":"ر.س.‏ 3,838.00"}},162,3,100]
[null,{"$f":"IFERROR((Inventory_List_Table[[#This Row],[كمية المخزون]]<=Inventory_List_Table[[#This Row],[معدّل إعادة الطلب]])*(Inventory_List_Table[[#This Row],[هل تم إيقاف هذا العنصر؟]]=\"\")*valHighlight,0)","v":0},"IN0009","عنصر 9","وصف 9",{"v":59,"d":"ر.س.‏ 59.00"},122,{"$f":"Inventory_List_Table[[#This Row],[سعر الوحدة]]*Inventory_List_Table[[#This Row],[كمية المخزون]]","v":{"v":7198,"d":"ر.س.‏ 7,198.00"}},82,3,150]
[null,{"$f":"IFERROR((Inventory_List_Table[[#This Row],[كمية المخزون]]<=Inventory_List_Table[[#This Row],[معدّل إعادة الطلب]])*(Inventory_List_Table[[#This Row],[هل تم إيقاف هذا العنصر؟]]=\"\")*valHighlight,0)","v":1},"IN0010","عنصر 10","وصف 10",{"v":50,"d":"ر.س.‏ 50.00"},175,{"$f":"Inventory_List_Table[[#This Row],[سعر الوحدة]]*Inventory_List_Table[[#This Row],[كمية المخزون]]","v":{"v":8750,"d":"ر.س.‏ 8,750.00"}},283,8,150]
[null,{"$f":"IFERROR((Inventory_List_Table[[#This Row],[كمية المخزون]]<=Inventory_List_Table[[#This Row],[معدّل إعادة الطلب]])*(Inventory_List_Table[[#This Row],[هل تم إيقاف هذا العنصر؟]]=\"\")*valHighlight,0)","v":1},"IN0011","عنصر 11","وصف 11",{"v":59,"d":"ر.س.‏ 59.00"},176,{"$f":"Inventory_List_Table[[#This Row],[سعر الوحدة]]*Inventory_List_Table[[#This Row],[كمية المخزون]]","v":{"v":10384,"d":"ر.س.‏ 10,384.00"}},229,1,100]
[null,{"$f":"IFERROR((Inventory_List_Table[[#This Row],[كمية المخزون]]<=Inventory_List_Table[[#This Row],[معدّل إعادة الطلب]])*(Inventory_List_Table[[#This Row],[هل تم إيقاف هذا العنصر؟]]=\"\")*valHighlight,0)","v":1},"IN0012","عنصر 12","وصف 12",{"v":18,"d":"ر.س.‏ 18.00"},22,{"$f":"Inventory_List_Table[[#This Row],[سعر الوحدة]]*Inventory_List_Table[[#This Row],[كمية المخزون]]","v":{"v":396,"d":"ر.س.‏ 396.00"}},36,12,50]
[null,{"$f":"IFERROR((Inventory_List_Table[[#This Row],[كمية المخزون]]<=Inventory_List_Table[[#This Row],[معدّل إعادة الطلب]])*(Inventory_List_Table[[#This Row],[هل تم إيقاف هذا العنصر؟]]=\"\")*valHighlight,0)","v":1},"IN0013","عنصر 13","وصف 13",{"v":26,"d":"ر.س.‏ 26.00"},72,{"$f":"Inventory_List_Table[[#This Row],[سعر الوحدة]]*Inventory_List_Table[[#This Row],[كمية المخزون]]","v":{"v":1872,"d":"ر.س.‏ 1,872.00"}},102,9,100]
[null,{"$f":"IFERROR((Inventory_List_Table[[#This Row],[كمية المخزون]]<=Inventory_List_Table[[#This Row],[معدّل إعادة الطلب]])*(Inventory_List_Table[[#This Row],[هل تم إيقاف هذا العنصر؟]]=\"\")*valHighlight,0)","v":1},"IN0014","عنصر 14","وصف 14",{"v":42,"d":"ر.س.‏ 42.00"},62,{"$f":"Inventory_List_Table[[#This Row],[سعر الوحدة]]*Inventory_List_Table[[#This Row],[كمية المخزون]]","v":{"v":2604,"d":"ر.س.‏ 2,604.00"}},83,2,100]
[null,{"$f":"IFERROR((Inventory_List_Table[[#This Row],[كمية المخزون]]<=Inventory_List_Table[[#This Row],[معدّل إعادة الطلب]])*(Inventory_List_Table[[#This Row],[هل تم إيقاف هذا العنصر؟]]=\"\")*valHighlight,0)","v":0},"IN0015","عنصر 15","وصف 15",{"v":32,"d":"ر.س.‏ 32.00"},46,{"$f":"Inventory_List_Table[[#This Row],[سعر الوحدة]]*Inventory_List_Table[[#This Row],[كمية المخزون]]","v":{"v":1472,"d":"ر.س.‏ 1,472.00"}},23,15,50]
[null,{"$f":"IFERROR((Inventory_List_Table[[#This Row],[كمية المخزون]]<=Inventory_List_Table[[#This Row],[معدّل إعادة الطلب]])*(Inventory_List_Table[[#This Row],[هل تم إيقاف هذا العنصر؟]]=\"\")*valHighlight,0)","v":1},"IN0016","عنصر 16","وصف 16",{"v":90,"d":"ر.س.‏ 90.00"},96,{"$f":"Inventory_List_Table[[#This Row],[سعر الوحدة]]*Inventory_List_Table[[#This Row],[كمية المخزون]]","v":{"v":8640,"d":"ر.س.‏ 8,640.00"}},180,3,50]
[null,{"$f":"IFERROR((Inventory_List_Table[[#This Row],[كمية المخزون]]<=Inventory_List_Table[[#This Row],[معدّل إعادة الطلب]])*(Inventory_List_Table[[#This Row],[هل تم إيقاف هذا العنصر؟]]=\"\")*valHighlight,0)","v":0},"IN0017","عنصر 17","وصف 17",{"v":97,"d":"ر.س.‏ 97.00"},57,{"$f":"Inventory_List_Table[[#This Row],[سعر الوحدة]]*Inventory_List_Table[[#This Row],[كمية المخزون]]","v":{"v":5529,"d":"ر.س.‏ 5,529.00"}},98,12,50,"نعم"]
[null,{"$f":"IFERROR((Inventory_List_Table[[#This Row],[كمية المخزون]]<=Inventory_List_Table[[#This Row],[معدّل إعادة الطلب]])*(Inventory_List_Table[[#This Row],[هل تم إيقاف هذا العنصر؟]]=\"\")*valHighlight,0)","v":1},"IN0018","عنصر 18","وصف 18",{"v":12,"d":"ر.س.‏ 12.00"},6,{"$f":"Inventory_List_Table[[#This Row],[سعر الوحدة]]*Inventory_List_Table[[#This Row],[كمية المخزون]]","v":{"v":72,"d":"ر.س.‏ 72.00"}},7,13,50]
[null,{"$f":"IFERROR((Inventory_List_Table[[#This Row],[كمية المخزون]]<=Inventory_List_Table[[#This Row],[معدّل إعادة الطلب]])*(Inventory_List_Table[[#This Row],[هل تم إيقاف هذا العنصر؟]]=\"\")*valHighlight,0)","v":1},"IN0019","عنصر 19","وصف 19",{"v":82,"d":"ر.س.‏ 82.00"},143,{"$f":"Inventory_List_Table[[#This Row],[سعر الوحدة]]*Inventory_List_Table[[#This Row],[كمية المخزون]]","v":{"v":11726,"d":"ر.س.‏ 11,726.00"}},164,12,150]
[null,{"$f":"IFERROR((Inventory_List_Table[[#This Row],[كمية المخزون]]<=Inventory_List_Table[[#This Row],[معدّل إعادة الطلب]])*(Inventory_List_Table[[#This Row],[هل تم إيقاف هذا العنصر؟]]=\"\")*valHighlight,0)","v":0},"IN0020","عنصر 20","وصف 20",{"v":16,"d":"ر.س.‏ 16.00"},124,{"$f":"Inventory_List_Table[[#This Row],[سعر الوحدة]]*Inventory_List_Table[[#This Row],[كمية المخزون]]","v":{"v":1984,"d":"ر.س.‏ 1,984.00"}},113,14,50]
[null,{"$f":"IFERROR((Inventory_List_Table[[#This Row],[كمية المخزون]]<=Inventory_List_Table[[#This Row],[معدّل إعادة الطلب]])*(Inventory_List_Table[[#This Row],[هل تم إيقاف هذا العنصر؟]]=\"\")*valHighlight,0)","v":0},"IN0021","عنصر 21","وصف 21",{"v":19,"d":"ر.س.‏ 19.00"},112,{"$f":"Inventory_List_Table[[#This Row],[سعر الوحدة]]*Inventory_List_Table[[#This Row],[كمية المخزون]]","v":{"v":2128,"d":"ر.س.‏ 2,128.00"}},75,11,50]
[null,{"$f":"IFERROR((Inventory_List_Table[[#This Row],[كمية المخزون]]<=Inventory_List_Table[[#This Row],[معدّل إعادة الطلب]])*(Inventory_List_Table[[#This Row],[هل تم إيقاف هذا العنصر؟]]=\"\")*valHighlight,0)","v":0},"IN0022","عنصر 22","وصف 22",{"v":24,"d":"ر.س.‏ 24.00"},182,{"$f":"Inventory_List_Table[[#This Row],[سعر الوحدة]]*Inventory_List_Table[[#This Row],[كمية المخزون]]","v":{"v":4368,"d":"ر.س.‏ 4,368.00"}},132,15,150]
[null,{"$f":"IFERROR((Inventory_List_Table[[#This Row],[كمية المخزون]]<=Inventory_List_Table[[#This Row],[معدّل إعادة الطلب]])*(Inventory_List_Table[[#This Row],[هل تم إيقاف هذا العنصر؟]]=\"\")*valHighlight,0)","v":0},"IN0023","عنصر 23","وصف 23",{"v":29,"d":"ر.س.‏ 29.00"},106,{"$f":"Inventory_List_Table[[#This Row],[سعر الوحدة]]*Inventory_List_Table[[#This Row],[كمية المخزون]]","v":{"v":3074,"d":"ر.س.‏ 3,074.00"}},142,1,150,"نعم"]
[null,{"$f":"IFERROR((Inventory_List_Table[[#This Row],[كمية المخزون]]<=Inventory_List_Table[[#This Row],[معدّل إعادة الطلب]])*(Inventory_List_Table[[#This Row],[هل تم إيقاف هذا العنصر؟]]=\"\")*valHighlight,0)","v":0},"IN0024","عنصر 24","وصف 24",{"v":75,"d":"ر.س.‏ 75.00"},173,{"$f":"Inventory_List_Table[[#This Row],[سعر الوحدة]]*Inventory_List_Table[[#This Row],[كمية المخزون]]","v":{"v":12975,"d":"ر.س.‏ 12,975.00"}},127,9,100]
[null,{"$f":"IFERROR((Inventory_List_Table[[#This Row],[كمية المخزون]]<=Inventory_List_Table[[#This Row],[معدّل إعادة الطلب]])*(Inventory_List_Table[[#This Row],[هل تم إيقاف هذا العنصر؟]]=\"\")*valHighlight,0)","v":0},"IN0025","عنصر 25","وصف 25",{"v":14,"d":"ر.س.‏ 14.00"},28,{"$f":"Inventory_List_Table[[#This Row],[سعر الوحدة]]*Inventory_List_Table[[#This Row],[كمية المخزون]]","v":{"v":392,"d":"ر.س.‏ 392.00"}},21,8,50]